fUSD/lending_fUSD_20260611
["ID","MTS","AMOUNT","RATE_DAILY","PERIOD"]
[424772457,1781148640000,-244.13505297,0.00013518,2]
[424772456,1781148640000,-150.0,0.00013514,2]
[424772435,1781148640000,-1469.7305754,0.00013399,2]
[424772437,1781148640000,-1469.7305754,0.00013432,2]
[424772434,1781148640000,-1469.7305754,0.00013381,2]
[424772436,1781148640000,-1469.7305754,0.00013416,2]
[424772438,1781148640000,-1469.7305754,0.00013449,2]
[424772441,1781148640000,-150.0,0.00013488,2]
[424772442,1781148640000,-150.0,0.00013488,2]
[424772439,1781148640000,-1469.7305754,0.00013465,2]
[424772446,1781148640000,-150.0,0.00013488,2]
[424772444,1781148640000,-150.0,0.00013488,2]
[424772440,1781148640000,-1469.7305754,0.0001348,2]
[424772445,1781148640000,-150.0,0.00013488,2]
[424772447,1781148640000,-203.85144979,0.00013488,2]
[424772448,1781148640000,-150.0,0.00013488,2]
[424772449,1781148640000,-150.0,0.00013488,2]
[424772455,1781148640000,-1469.7305754,0.00013511,2]
[424772451,1781148640000,-244.13505297,0.00013488,2]
[424772450,1781148640000,-150.0,0.00013488,2]
[424772452,1781148640000,-1469.7305754,0.00013496,2]
[424772454,1781148640000,-244.13505297,0.00013503,2]
[424772443,1781148640000,-150.0,0.00013488,2]
[424772453,1781148640000,-44832.32827082,0.00013498,2]
[424772528,1781148641000,-500.0,0.00013698,2]
[424772518,1781148641000,-538.43007766,0.00013698,2]
[424772527,1781148641000,-500.0,0.00013698,2]
[424772519,1781148641000,-500.0,0.00013698,2]
[424772512,1781148641000,-500.0,0.00013698,2]
[424772515,1781148641000,-500.0,0.00013698,2]
[424772511,1781148641000,-500.0,0.00013698,2]
[424772517,1781148641000,-473.88481406,0.00013698,2]
[424772520,1781148641000,-500.0,0.00013698,2]
[424772516,1781148641000,-500.0,0.00013698,2]
[424772521,1781148641000,-500.0,0.00013698,2]
[424772538,1781148641000,-179.84270164,0.00013698,2]
[424772529,1781148641000,-500.0,0.00013698,2]
[424772523,1781148641000,-500.0,0.00013698,2]
[424772526,1781148641000,-500.0,0.00013698,2]
[424772525,1781148641000,-500.0,0.00013698,2]
[424772524,1781148641000,-579.39543898,0.00013698,2]
[424772530,1781148641000,-500.0,0.00013698,2]
[424772532,1781148641000,-500.0,0.00013698,2]
[424772535,1781148641000,-500.0,0.00013698,2]
[424772539,1781148641000,-500.0,0.00013698,2]
[424772513,1781148641000,-500.0,0.00013698,2]
[424772531,1781148641000,-500.0,0.00013698,2]
[424772537,1781148641000,-500.0,0.00013698,2]
[424772522,1781148641000,-500.0,0.00013698,2]
[424772510,1781148641000,-362.50237529,0.00013698,2]
[424772498,1781148641000,-150.0,0.00013675,2]
[424772509,1781148641000,-500.0,0.00013698,2]
[424772534,1781148641000,-500.0,0.00013698,2]
[424772485,1781148641000,-150.0,0.00013624,2]
[424772483,1781148641000,-150.0,0.00013621,2]
[424772484,1781148641000,-150.0,0.00013624,2]
[424772486,1781148641000,-244.13505297,0.00013624,2]
[424772488,1781148641000,-1469.7305754,0.00013639,2]
[424772491,1781148641000,-150.0,0.00013648,2]
[424772489,1781148641000,-244.13505297,0.00013639,2]
[424772490,1781148641000,-150.0,0.00013645,2]
[424772492,1781148641000,-150.0,0.0001365,2]
[424772495,1781148641000,-1469.7305754,0.00013665,2]
[424772494,1781148641000,-244.13505297,0.00013654,2]
[424772493,1781148641000,-1469.7305754,0.00013652,2]
[424772496,1781148641000,-150.0,0.00013669,2]
[424772497,1781148641000,-244.13505297,0.00013669,2]
[424772499,1781148641000,-1469.7305754,0.00013678,2]
[424772501,1781148641000,-150.0,0.00013685,2]
[424772500,1781148641000,-244.13505297,0.00013684,2]
[424772504,1781148641000,-574.57860626,0.00013698,2]
[424772505,1781148641000,-500.0,0.00013698,2]
[424772502,1781148641000,-150.0,0.0001369,2]
[424772506,1781148641000,-500.0,0.00013698,2]
[424772503,1781148641000,-1469.7305754,0.00013691,2]
[424772507,1781148641000,-503.31933434,0.00013698,2]
[424772508,1781148641000,-500.0,0.00013698,2]
[424772514,1781148641000,-500.0,0.00013698,2]
[424772487,1781148641000,-1469.7305754,0.00013625,2]
[424772536,1781148641000,-500.0,0.00013698,2]
[424772540,1781148641000,-500.0,0.00013698,2]
[424772572,1781148641000,-500.0,0.00013698,2]
[424772570,1781148641000,-500.0,0.00013698,2]
[424772567,1781148641000,-500.0,0.00013698,2]
[424772568,1781148641000,-500.0,0.00013698,2]
[424772573,1781148641000,-500.0,0.00013698,2]
[424772575,1781148641000,-500.0,0.00013698,2]
[424772574,1781148641000,-500.0,0.00013698,2]
[424772578,1781148641000,-500.0,0.00013698,2]
[424772577,1781148641000,-500.0,0.00013698,2]
[424772588,1781148641000,-500.0,0.00013698,2]
[424772582,1781148641000,-500.0,0.00013698,2]
[424772580,1781148641000,-500.0,0.00013698,2]
[424772584,1781148641000,-500.0,0.00013698,2]
[424772579,1781148641000,-500.0,0.00013698,2]
[424772581,1781148641000,-500.0,0.00013698,2]
[424772583,1781148641000,-500.0,0.00013698,2]
[424772587,1781148641000,-502.88764057,0.00013698,2]
[424772585,1781148641000,-220.04454981,0.00013698,2]
[424772586,1781148641000,-415.12475003,0.00013698,2]
[424772590,1781148641000,-500.0,0.00013698,2]
[424772594,1781148641000,-500.0,0.00013698,2]
[424772593,1781148641000,-500.0,0.00013698,2]
[424772592,1781148641000,-500.0,0.00013698,2]
[424772589,1781148641000,-500.0,0.00013698,2]
[424772533,1781148641000,-500.0,0.00013698,2]
[424772569,1781148641000,-500.0,0.00013698,2]
[424772571,1781148641000,-500.0,0.00013698,2]
[424772591,1781148641000,-500.0,0.00013698,2]
[424772576,1781148641000,-500.0,0.00013698,2]
[424772565,1781148641000,-500.0,0.00013698,2]
[424772544,1781148641000,-500.0,0.00013698,2]
[424772541,1781148641000,-500.0,0.00013698,2]
[424772552,1781148641000,-500.0,0.00013698,2]
[424772543,1781148641000,-500.0,0.00013698,2]
[424772545,1781148641000,-504.25668169,0.00013698,2]
[424772547,1781148641000,-292.30346816,0.00013698,2]
[424772549,1781148641000,-500.0,0.00013698,2]
[424772548,1781148641000,-500.0,0.00013698,2]
[424772546,1781148641000,-500.0,0.00013698,2]
[424772550,1781148641000,-500.0,0.00013698,2]
[424772551,1781148641000,-500.0,0.00013698,2]
[424772542,1781148641000,-500.0,0.00013698,2]
[424772555,1781148641000,-500.0,0.00013698,2]
[424772554,1781148641000,-500.0,0.00013698,2]
[424772566,1781148641000,-500.0,0.00013698,2]
[424772559,1781148641000,-500.0,0.00013698,2]
[424772562,1781148641000,-500.0,0.00013698,2]
[424772556,1781148641000,-500.0,0.00013698,2]
[424772563,1781148641000,-500.0,0.00013698,2]
[424772557,1781148641000,-500.0,0.00013698,2]
[424772564,1781148641000,-500.0,0.00013698,2]
[424772558,1781148641000,-500.0,0.00013698,2]
[424772560,1781148641000,-500.0,0.00013698,2]
[424772553,1781148641000,-500.0,0.00013698,2]
[424772561,1781148641000,-500.0,0.00013698,2]
[424772630,1781148642000,-500.0,0.00013698,2]
[424772632,1781148642000,-500.0,0.00013698,2]
[424772629,1781148642000,-500.0,0.00013698,2]
[424772631,1781148642000,-500.0,0.00013698,2]
[424772626,1781148642000,-500.0,0.00013698,2]
[424772627,1781148642000,-500.0,0.00013698,2]
[424772622,1781148642000,-500.0,0.00013698,2]
[424772628,1781148642000,-500.0,0.00013698,2]
[424772634,1781148642000,-500.0,0.00013698,2]
[424772624,1781148642000,-500.0,0.00013698,2]
[424772633,1781148642000,-500.0,0.00013698,2]
[424772637,1781148642000,-500.0,0.00013698,2]
[424772641,1781148642000,-500.0,0.00013698,2]
[424772638,1781148642000,-500.0,0.00013698,2]
[424772635,1781148642000,-500.0,0.00013698,2]
[424772625,1781148642000,-500.0,0.00013698,2]
[424772639,1781148642000,-500.0,0.00013698,2]
[424772642,1781148642000,-500.0,0.00013698,2]
[424772640,1781148642000,-500.0,0.00013698,2]
[424772644,1781148642000,-500.0,0.00013698,2]
[424772643,1781148642000,-500.0,0.00013698,2]
[424772647,1781148642000,-500.0,0.00013698,2]
[424772645,1781148642000,-500.0,0.00013698,2]
[424772646,1781148642000,-500.0,0.00013698,2]
[424772636,1781148642000,-500.0,0.00013698,2]
[424772623,1781148642000,-500.0,0.00013698,2]
[424772613,1781148642000,-500.0,0.00013698,2]
[424772615,1781148642000,-500.0,0.00013698,2]
[424772649,1781148642000,-500.0,0.00013698,2]
[424772595,1781148642000,-500.0,0.00013698,2]
[424772598,1781148642000,-500.0,0.00013698,2]
[424772597,1781148642000,-500.0,0.00013698,2]
[424772596,1781148642000,-500.0,0.00013698,2]
[424772599,1781148642000,-500.0,0.00013698,2]
[424772600,1781148642000,-500.0,0.00013698,2]
[424772601,1781148642000,-500.0,0.00013698,2]
[424772603,1781148642000,-500.0,0.00013698,2]
[424772602,1781148642000,-500.0,0.00013698,2]
[424772605,1781148642000,-503.42046644,0.00013698,2]
[424772621,1781148642000,-500.0,0.00013698,2]
[424772604,1781148642000,-500.0,0.00013698,2]
[424772608,1781148642000,-500.0,0.00013698,2]
[424772607,1781148642000,-500.0,0.00013698,2]
[424772610,1781148642000,-500.0,0.00013698,2]
[424772616,1781148642000,-500.0,0.00013698,2]
[424772620,1781148642000,-500.0,0.00013698,2]
[424772617,1781148642000,-500.0,0.00013698,2]
[424772612,1781148642000,-500.0,0.00013698,2]
[424772618,1781148642000,-500.0,0.00013698,2]
[424772614,1781148642000,-500.0,0.00013698,2]
[424772611,1781148642000,-500.0,0.00013698,2]
[424772619,1781148642000,-500.0,0.00013698,2]
[424772606,1781148642000,-500.0,0.00013698,2]
[424772652,1781148642000,-500.0,0.00013698,2]
[424772609,1781148642000,-500.0,0.00013698,2]
[424772648,1781148642000,-500.0,0.00013698,2]
[424772682,1781148642000,-500.0,0.00013698,2]
[424772686,1781148642000,-1075.42,0.00013698,2]
[424772691,1781148642000,-1075.42,0.00013698,2]
[424772685,1781148642000,-1075.42,0.00013698,2]
[424772687,1781148642000,-1075.42,0.00013698,2]
[424772689,1781148642000,-1075.42,0.00013698,2]
[424772684,1781148642000,-504.05769263,0.00013698,2]
[424772690,1781148642000,-1075.42,0.00013698,2]
[424772688,1781148642000,-1075.42,0.00013698,2]
[424772693,1781148642000,-1075.42,0.00013698,2]
[424772694,1781148642000,-1075.42,0.00013698,2]
[424772692,1781148642000,-1075.42,0.00013698,2]
[424772696,1781148642000,-1361.31,0.00013698,2]
[424772695,1781148642000,-1075.42,0.00013698,2]
[424772699,1781148642000,-154.27,0.00013699,2]
[424772697,1781148642000,-1361.31,0.00013698,2]
[424772698,1781148642000,-1361.31,0.00013698,2]
[424772701,1781148642000,-2500.0,0.00013699,2]
[424772700,1781148642000,-771.36,0.00013699,2]
[424772703,1781148642000,-188.14874168,0.00013699,10]
[424772702,1781148642000,-200.0,0.00013699,2]
[424772706,1781148642000,-9999.99,0.00013699,2]
[424772705,1781148642000,-7347.79,0.00013699,2]
[424772704,1781148642000,-4140.17,0.00013699,2]
[424772650,1781148642000,-500.0,0.00013698,2]
[424772679,1781148642000,-500.0,0.00013698,2]
[424772681,1781148642000,-500.0,0.00013698,2]
[424772707,1781148642000,-22261.86,0.00013699,2]
[424772674,1781148642000,-500.0,0.00013698,2]
[424772683,1781148642000,-500.0,0.00013698,2]
[424772651,1781148642000,-527.02640831,0.00013698,2]
[424772653,1781148642000,-500.0,0.00013698,2]
[424772656,1781148642000,-500.0,0.00013698,2]
[424772660,1781148642000,-500.0,0.00013698,2]
[424772655,1781148642000,-500.0,0.00013698,2]
[424772663,1781148642000,-500.0,0.00013698,2]
[424772659,1781148642000,-500.0,0.00013698,2]
[424772658,1781148642000,-500.0,0.00013698,2]
[424772657,1781148642000,-500.0,0.00013698,2]
[424772664,1781148642000,-175.0,0.00013698,2]
[424772661,1781148642000,-171.51496798,0.00013698,2]
[424772654,1781148642000,-500.0,0.00013698,2]
[424772665,1781148642000,-175.85023009,0.00013698,2]
[424772675,1781148642000,-500.0,0.00013698,2]
[424772662,1781148642000,-500.0,0.00013698,2]
[424772676,1781148642000,-285.50176891,0.00013698,2]
[424772672,1781148642000,-500.0,0.00013698,2]
[424772671,1781148642000,-500.0,0.00013698,2]
[424772673,1781148642000,-500.0,0.00013698,2]
[424772668,1781148642000,-500.0,0.00013698,2]
[424772670,1781148642000,-500.0,0.00013698,2]
[424772666,1781148642000,-500.0,0.00013698,2]
[424772677,1781148642000,-500.0,0.00013698,2]
[424772669,1781148642000,-500.0,0.00013698,2]
[424772667,1781148642000,-500.0,0.00013698,2]
[424772735,1781148643000,-150.0,0.00013771,2]
[424772737,1781148643000,-150.0,0.00013782,2]
[424772736,1781148643000,-244.13505297,0.00013775,2]
[424772734,1781148643000,-308.357588,0.00013769,2]
[424772741,1781148643000,-244.13505297,0.00013806,2]
[424772739,1781148643000,-150.0,0.00013803,2]
[424772743,1781148643000,-150.0,0.00013812,2]
[424772740,1781148643000,-150.0,0.00013806,2]
[424772742,1781148643000,-150.0,0.00013809,2]
[424772744,1781148643000,-244.13505297,0.00013821,2]
[424772751,1781148643000,-150.0,0.00013852,2]
[424772746,1781148643000,-150.0,0.00013836,2]
[424772749,1781148643000,-150.0,0.00013851,2]
[424772748,1781148643000,-150.0,0.00013843,2]
[424772750,1781148643000,-244.13505297,0.00013851,2]
[424772752,1781148643000,-150.0,0.00013862,2]
[424772745,1781148643000,-347.002935,0.00013823,2]
[424772753,1781148643000,-244.13505297,0.00013866,2]
[424772733,1781148643000,-1391.27,0.00013768,2]
[424772747,1781148643000,-244.13505297,0.00013836,2]
[424772738,1781148643000,-244.13505297,0.0001379,2]
[424772732,1781148643000,-150.0,0.00013764,2]
[424772717,1781148643000,-500.0,0.00013726,2]
[424772730,1781148643000,-150.0,0.0001376,2]
[424772755,1781148643000,-244.13505297,0.00013881,2]
[424772711,1781148643000,-1469.7305754,0.00013703,2]
[424772710,1781148643000,-150.0,0.00013702,2]
[424772708,1781148643000,-1356.51908659,0.00013699,2]
[424772709,1781148643000,-244.13505297,0.000137,2]
[424772712,1781148643000,-150.0,0.00013715,2]
[424772714,1781148643000,-1469.7305754,0.00013716,2]
[424772715,1781148643000,-150.0,0.00013724,2]
[424772713,1781148643000,-244.13505297,0.00013715,2]
[424772716,1781148643000,-502.0,0.00013726,2]
[424772727,1781148643000,-167.316293,0.00013754,2]
[424772719,1781148643000,-150.0,0.00013729,2]
[424772721,1781148643000,-150.0,0.00013731,2]
[424772718,1781148643000,-1469.7305754,0.00013728,2]
[424772720,1781148643000,-244.13505297,0.0001373,2]
[424772723,1781148643000,-1469.7305754,0.0001374,2]
[424772725,1781148643000,-1469.7305754,0.00013752,2]
[424772726,1781148643000,-290.735725,0.00013754,2]
[424772724,1781148643000,-244.13505297,0.00013745,2]
[424772729,1781148643000,-150.0,0.0001376,2]
[424772728,1781148643000,-150.0,0.00013755,2]
[424772731,1781148643000,-244.13505297,0.0001376,2]
[424772722,1781148643000,-150.0,0.00013737,2]
[424772754,1781148643000,-590.96106715,0.00013871,2]
[424772764,1781148643000,-250.0,0.00013915,2]
[424772756,1781148643000,-150.0,0.00013882,2]
[424772781,1781148643000,-150.0,0.00013974,2]
[424772777,1781148643000,-5737.1965104,0.00013971,2]
[424772786,1781148643000,-244.13505297,0.00013987,2]
[424772787,1781148643000,-492.8427843,0.00013989,2]
[424772789,1781148643000,-31272.7655388,0.00013993,2]
[424772790,1781148643000,-150.0,0.00013996,2]
[424772788,1781148643000,-409.28734248,0.00013989,2]
[424772798,1781148643000,-150.0,0.00014033,2]
[424772791,1781148643000,-250.0,0.00014,2]
[424772793,1781148643000,-244.13505297,0.00014002,2]
[424772795,1781148643000,-244.13505297,0.00014017,2]
[424772796,1781148643000,-150.0,0.00014023,2]
[424772794,1781148643000,-150.0,0.00014014,2]
[424772792,1781148643000,-150.0,0.00014,2]
[424772797,1781148643000,-150.0,0.00014033,2]
[424772800,1781148643000,-150.0,0.0001404,2]
[424772799,1781148643000,-244.13505297,0.00014033,2]
[424772761,1781148643000,-150.0,0.00013896,2]
[424772803,1781148643000,-150.0,0.00014055,2]
[424772801,1781148643000,-244.13505297,0.00014048,2]
[424772802,1781148643000,-150.0,0.0001405,2]
[424772780,1781148643000,-244.13505297,0.00013972,2]
[424772775,1781148643000,-44832.32827082,0.00013966,2]
[424772804,1781148643000,-244.13505297,0.00014063,2]
[424772783,1781148643000,-150.0,0.00013987,2]
[424772778,1781148643000,-59355.9953218,0.00013971,2]
[424772758,1781148643000,-286.580369,0.00013891,2]
[424772760,1781148643000,-150.0,0.00013896,2]
[424772762,1781148643000,-244.13505297,0.00013896,2]
[424772759,1781148643000,-150.0,0.00013893,2]
[424772763,1781148643000,-244.13505297,0.00013912,2]
[424772765,1781148643000,-150.0,0.00013916,2]
[424772767,1781148643000,-244.13505297,0.00013927,2]
[424772766,1781148643000,-150.0,0.00013921,2]
[424772770,1781148643000,-150.0,0.00013942,2]
[424772757,1781148643000,-150.0,0.00013889,2]
[424772768,1781148643000,-1271.72028422,0.00013933,2]
[424772769,1781148643000,-150.0,0.00013933,2]
[424772785,1781148643000,-150.0,0.00013987,2]
[424772784,1781148643000,-150.0,0.00013987,2]
[424772776,1781148643000,-150.0,0.00013969,2]
[424772779,1781148643000,-5477.232211,0.00013971,2]
[424772771,1781148643000,-244.13505297,0.00013942,2]
[424772774,1781148643000,-150.0,0.00013961,2]
[424772772,1781148643000,-150.0,0.00013943,2]
[424772773,1781148643000,-244.13505297,0.00013957,2]
[424772782,1781148643000,-150.0,0.00013987,2]
[424772824,1781148644000,-150.0,0.00014169,2]
[424772830,1781148644000,-244.13505297,0.00014199,2]
[424772826,1781148644000,-150.0,0.00014176,2]
[424772833,1781148644000,-244.13505297,0.00014214,2]
[424772829,1781148644000,-150.0,0.00014198,2]
[424772827,1781148644000,-150.0,0.00014183,2]
[424772832,1781148644000,-150.0,0.00014214,2]
[424772831,1781148644000,-150.0,0.0001421,2]
[424772838,1781148644000,-150.0,0.00014237,2]
[424772842,1781148644000,-150.0,0.0001426,2]
[424772837,1781148644000,-150.0,0.00014237,2]
[424772835,1781148644000,-244.13505297,0.00014229,2]
[424772839,1781148644000,-150.0,0.00014237,2]
[424772843,1781148644000,-244.13505297,0.0001426,2]
[424772845,1781148644000,-244.13505297,0.00014275,2]
[424772834,1781148644000,-150.0,0.00014217,2]
[424772836,1781148644000,-150.0,0.00014237,2]
[424772828,1781148644000,-244.13505297,0.00014184,2]
[424772812,1781148644000,-244.13505297,0.00014108,2]
[424772822,1781148644000,-150.0,0.00014158,2]
[424772810,1781148644000,-150.0,0.00014095,2]
[424772811,1781148644000,-150.0,0.00014103,2]
[424772808,1781148644000,-150.0,0.00014079,2]
[424772809,1781148644000,-244.13505297,0.00014093,2]
[424772806,1781148644000,-150.0,0.00014078,2]
[424772807,1781148644000,-244.13505297,0.00014078,2]
[424772805,1781148644000,-150.0,0.00014076,2]
[424772814,1781148644000,-736.0,0.0001412,2]
[424772815,1781148644000,-150.0,0.00014123,2]
[424772813,1781148644000,-150.0,0.00014119,2]
[424772819,1781148644000,-244.13505297,0.00014139,2]
[424772817,1781148644000,-150.0,0.0001413,2]
[424772821,1781148644000,-150.0,0.00014157,2]
[424772820,1781148644000,-244.13505297,0.00014154,2]
[424772818,1781148644000,-150.0,0.00014136,2]
[424772816,1781148644000,-244.13505297,0.00014123,2]
[424772823,1781148644000,-150.0,0.00014169,2]
[424772825,1781148644000,-244.13505297,0.00014169,2]
[424772844,1781148644000,-150.0,0.00014264,2]
[424772852,1781148644000,-244.13505297,0.00014305,2]
[424772841,1781148644000,-150.0,0.00014257,2]
[424772865,1781148644000,-244.13505297,0.00014381,2]
[424772869,1781148644000,-150.0,0.00014398,2]
[424772872,1781148644000,-500.0,0.00014399,2]
[424772873,1781148644000,-500.0,0.00014399,2]
[424772871,1781148644000,-500.0,0.00014399,2]
[424772879,1781148644000,-166.47,0.00014418,2]
[424772878,1781148644000,-244.13505297,0.00014411,2]
[424772866,1781148644000,-150.0,0.00014395,2]
[424772876,1781148644000,-500.0,0.00014399,2]
[424772877,1781148644000,-500.0,0.00014399,2]
[424772875,1781148644000,-500.0,0.00014399,2]
[424772880,1781148644000,-150.0,0.00014419,2]
[424772881,1781148644000,-150.0,0.00014424,2]
[424772883,1781148644000,-5757.38620079,0.00014433,2]
[424772882,1781148644000,-244.13505297,0.00014426,2]
[424772840,1781148644000,-244.13505297,0.00014245,2]
[424772870,1781148644000,-500.0,0.00014399,2]
[424772863,1781148644000,-150.0,0.00014371,2]
[424772874,1781148644000,-500.0,0.00014399,2]
[424772861,1781148644000,-150.0,0.00014355,2]
[424772846,1781148644000,-150.0,0.00014276,2]
[424772849,1781148644000,-150.0,0.00014298,2]
[424772856,1781148644000,-244.13505297,0.00014335,2]
[424772864,1781148644000,-150.0,0.00014379,2]
[424772847,1781148644000,-244.13505297,0.0001429,2]
[424772850,1781148644000,-150.0,0.00014305,2]
[424772853,1781148644000,-150.0,0.00014316,2]
[424772848,1781148644000,-150.0,0.00014291,2]
[424772854,1781148644000,-150.0,0.00014317,2]
[424772851,1781148644000,-150.0,0.00014305,2]
[424772868,1781148644000,-244.13505297,0.00014396,2]
[424772858,1781148644000,-150.0,0.00014344,2]
[424772859,1781148644000,-150.0,0.00014351,2]
[424772867,1781148644000,-150.0,0.00014396,2]
[424772860,1781148644000,-244.13505297,0.00014351,2]
[424772857,1781148644000,-150.0,0.00014338,2]
[424772862,1781148644000,-244.13505297,0.00014366,2]
[424772855,1781148644000,-244.13505297,0.0001432,2]
[424772888,1781148645000,-292.87,0.00013698,2]
[424772885,1781148645000,-1358.20293841,0.00013698,2]
[424772886,1781148645000,-3.10706159,0.00013698,2]
[424772889,1781148645000,-716.7894818,0.00013698,2]
[424772890,1781148645000,-92.94828459,0.00013698,2]
[424772887,1781148645000,-258.70223361,0.00013698,2]
[424772891,1781148645000,-866.42427292,0.00014433,2]
[424772911,1781148646000,-1361.31,0.00013698,2]
[424772908,1781148646000,-356.85363402,0.00013698,2]
[424772909,1781148646000,-1004.45636598,0.00013698,2]
[424772910,1781148646000,-1361.31,0.00013698,2]
[424772916,1781148646000,-1361.31,0.00013698,2]
[424772914,1781148646000,-1361.31,0.00013698,2]
[424772915,1781148646000,-1361.31,0.00013698,2]
[424772913,1781148646000,-1361.31,0.00013698,2]
[424772918,1781148646000,-778.22176752,0.00014433,2]
[424772922,1781148646000,-353.93710715,0.00013989,2]
[424772917,1781148646000,-3044.64404834,0.00014433,2]
[424772912,1781148646000,-1361.31,0.00013698,2]
[424772923,1781148647000,-970.66460315,0.00013989,2]
[424772926,1781149607000,179.95,8.179e-05,2]
[424772973,1781149834000,-339.3261202,9.797e-05,2]
[424772969,1781149834000,-251.93596117,9.586e-05,2]
[424772971,1781149834000,-150.0,9.691e-05,2]
[424772970,1781149834000,-238.92591293,9.586e-05,2]
[424772972,1781149834000,-103.92880564,9.797e-05,2]
[424772974,1781149834000,-2000.0,0.0001,2]
[424772977,1781149834000,-404.737003,0.00010045,2]
[424772975,1781149834000,-192.53316336,0.0001,2]
[424772978,1781149834000,-163.63,0.00010182,2]
[424772980,1781149834000,-1638.4707386,0.00010297,2]
[424772979,1781149834000,-188.67284725,0.000102,7]
[424772982,1781149834000,-5153.99529605,0.00010297,2]
[424772981,1781149834000,-1181.23812277,0.00010297,2]
[424772983,1781149834000,-160.354,0.00010386,2]
[424772976,1781149834000,-182.41118872,0.0001,2]
[424772999,1781149835000,-663.44745054,0.00010688,2]
[424772997,1781149835000,-215.95576085,0.00010628,2]
[424772998,1781149835000,-152.31,0.00010635,2]
[424773001,1781149835000,-2046.78,0.00010923,2]
[424773005,1781149835000,-999.99,0.00010958,2]
[424773002,1781149835000,-2434.22,0.00010929,2]
[424773004,1781149835000,-9999.99,0.00010958,2]
[424773003,1781149835000,-150.0,0.00010957,2]
[424772996,1781149835000,-2000.0,0.00010598,2]
[424773000,1781149835000,-800.0,0.000109,3]
[424772995,1781149835000,-299.99,0.000105,2]
[424772985,1781149835000,-716.12550456,0.00010386,2]
[424772990,1781149835000,-1385.9800199,0.000105,2]
[424772992,1781149835000,-9999.99,0.000105,2]
[424772994,1781149835000,-1219.08,0.000105,2]
[424772991,1781149835000,-1909.16,0.000105,2]
[424772989,1781149835000,-2065.0372683,0.000105,2]
[424772986,1781149835000,-684.99179149,0.00010386,2]
[424772988,1781149835000,-700.8827118,0.000105,2]
[424772987,1781149835000,-250.190654,0.000105,7]
[424772984,1781149835000,-2017.65070395,0.00010386,2]
[424772993,1781149835000,-150.99,0.000105,2]
[424773006,1781149835000,-150.0,0.00010959,2]
[424773027,1781149835000,-172.9,0.00012019,2]
[424773010,1781149835000,-166.66,0.00011068,2]
[424773007,1781149835000,-150.0,0.00010959,2]
[424773030,1781149835000,-775.59115319,0.00012087,2]
[424773029,1781149835000,-17249.30141073,0.00012087,2]
[424773028,1781149835000,-1500.56,0.00012042,2]
[424773025,1781149835000,-255.0,0.00011998,2]
[424773024,1781149835000,-152.31,0.00011805,2]
[424773023,1781149835000,-260.47,0.00011771,2]
[424773020,1781149835000,-166.66,0.00011507,2]
[424773022,1781149835000,-1500.56,0.00011748,2]
[424773019,1781149835000,-166.66,0.00011397,2]
[424773026,1781149835000,-500.0,0.00012019,2]
[424773017,1781149835000,-500.0,0.00011279,2]
[424773009,1781149835000,-2466.71,0.00011061,2]
[424773021,1781149835000,-1440.18,0.00011748,2]
[424773008,1781149835000,-166.66,0.00010959,2]
[424773011,1781149835000,-24999.99,0.00011099,2]